bitfinex-derivatives/quotes_ETHF0:USTF0_20250602
["timestamp","ask_amount","ask_price","bid_price","bid_amount"]
[1748855567900,3.2078,2481.1,2480.4,1.304]
[1748855568094,9.01349,2481.1,2480.4,1.304]
[1748855568311,9.01349,2481.1,2481.0,0.81176622]
[1748855568312,3.2078,2481.1,2481.0,0.81176622]
[1748855568805,3.2078,2481.8,2481.0,5.00604622]
[1748855571696,0.2013,2483.2,2482.6,5.449]
[1748855571891,0.2013,2483.2,2482.7,1.344]
[1748855572094,3.2078,2483.1,2482.7,6.793]
[1748855572302,3.2078,2483.1,2482.8,2.14914]
[1748855572499,3.2078,2483.1,2483.0,0.80507]
[1748855572796,8.2078,2483.1,2482.0,0.00604583]
[1748855573006,0.2013,2483.2,2482.4,1.344]
[1748855573007,3.2078,2482.5,2482.4,1.344]
[1748855573303,4.01305,2482.5,2482.1,6.25436]
[1748855573705,4.01304,2482.5,2482.1,6.25434]
[1748855574004,0.80536,2482.1,2482.0,0.00604583]
[1748855574503,7.19536,2482.1,2482.0,0.00604583]
[1748855574701,3.2078,2482.2,2482.0,0.00604583]
[1748855575108,3.2078,2482.2,2482.0,1.37424583]
[1748855575403,4.01314,2482.2,2482.0,7.62963583]
[1748855575600,4.01314,2482.2,2482.0,6.82424583]
[1748855575806,4.01314,2482.2,2482.0,7.62964583]
[1748855576308,0.80536,2482.1,2482.0,0.00604583]
[1748855576696,3.2078,2482.2,2482.0,0.00604583]
[1748855576902,3.2078,2482.2,2482.0,2.17963583]
[1748855577098,3.2078,2482.2,2482.0,1.37424583]
[1748855577301,3.2078,2482.2,2481.2,3.2078]
[1748855577302,4.5324,2482.2,2481.2,3.2078]
[1748855577502,21.4504,2482.3,2481.2,3.2078]
[1748855577503,0.80543,2482.0,2481.8,1.3572]
[1748855577703,21.4504,2482.3,2481.8,1.3572]
[1748855577704,3.6342,2482.3,2481.8,2.16265]
[1748855577904,0.80538,2482.1,2481.8,7.61363]
[1748855578107,3.2078,2482.0,2481.8,6.8082]
[1748855578299,0.80543,2481.9,2481.8,6.8082]
[1748855578504,3.2078,2482.0,2481.8,6.8082]
[1748855578705,3.2078,2482.0,2481.9,0.80543]
[1748855578900,3.2078,2482.0,2481.9,2.16263]
[1748855579305,0.8054,2482.0,2481.9,1.3572]
[1748855579506,4.0132,2482.0,2481.9,1.3572]
[1748855579909,0.80546,2481.8,2481.7,0.00604583]
[1748855580107,0.80546,2481.8,2481.7,5.45704583]
[1748855580807,0.80546,2481.8,2481.7,0.00604583]
[1748855581305,5.80546,2481.8,2481.7,0.00604583]
[1748855581511,0.80546,2481.8,2481.7,0.00604583]
[1748855581906,5.80546,2481.8,2481.7,0.00604583]
[1748855582102,26.94546,2481.8,2481.7,0.00604583]
[1748855582501,0.80546,2481.8,2481.7,0.00604583]
[1748855582907,3.2078,2482.0,2481.7,6.74274583]
[1748855583117,0.80543,2481.9,2481.8,1.2857]
[1748855583310,0.80543,2481.9,2481.7,5.45704583]
[1748855583311,0.80546,2481.8,2481.7,0.00604583]
[1748855584014,0.80546,2481.8,2481.7,7.65951583]
[1748855584217,3.2078,2482.0,2481.9,0.80543]
[1748855585310,3.2078,2482.0,2481.9,2.20143]
[1748855585511,3.2078,2482.0,2481.9,7.20143]
[1748855586220,3.2078,2482.0,2481.9,2.20143]
[1748855586511,0.4264,2482.3,2481.9,9.6038]
[1748855586718,3.4091,2483.2,2482.7,0.80517]
[1748855586914,3.2078,2482.8,2482.2,3.2078]
[1748855587107,3.2078,2482.8,2482.3,0.80528]
[1748855587302,3.2078,2482.4,2482.3,0.80528]
[1748855587509,0.80531,2482.3,2481.8,3.9279]
[1748855587710,4.01308,2482.4,2482.2,0.80532]
[1748855588015,3.2078,2482.4,2482.3,0.8053]
[1748855589217,0.00604583,2482.6,2482.5,0.80524]
[1748855589415,0.00604583,2482.6,2482.5,6.49624]
[1748855589615,0.00604583,2482.6,2482.1,3.2078]
[1748855589810,3.2078,2482.3,2481.8,3.2078]
[1748855590018,0.80535,2482.2,2482.0,0.80538]
[1748855590317,0.80537,2482.1,2481.9,0.80542]
[1748855590512,3.2078,2482.3,2481.8,3.2078]
[1748855590713,3.2078,2482.3,2482.0,0.80539]
[1748855590914,0.80535,2482.2,2482.0,0.80538]
[1748855591216,0.80535,2482.2,2482.1,0.80536]
[1748855591621,3.2078,2482.3,2482.1,0.80536]
[1748855591825,4.0131,2482.3,2482.2,5.69]
[1748855592117,4.0131,2482.3,2482.2,6.49533]
[1748855592319,3.2078,2482.3,2482.2,6.49533]
[1748855592520,3.2078,2482.3,2481.7,0.00604583]
[1748855592521,2.01334,2482.2,2481.7,0.00604583]
[1748855592712,4.01326,2481.8,2481.7,0.00604583]
[1748855592912,5.42928499,2481.8,2481.3,5.691]
[1748855593219,4.01339,2481.4,2481.3,5.691]
[1748855593616,0.80569,2481.1,2481.0,0.00604622]
[1748855593821,4.01349,2481.1,2481.0,5.69704622]
[1748855594318,4.01349,2481.1,2481.0,0.00604622]
[1748855595219,4.21499,2481.1,2481.0,0.00604622]
[1748855595721,4.21499,2481.1,2481.0,5.69704622]
[1748855595919,4.21499,2481.1,2481.0,0.00604622]
[1748855596118,3.4093,2481.1,2481.0,0.00604622]
[1748855596317,3.4093,2481.1,2480.8,0.00604583]
[1748855596918,0.80573,2481.0,2480.9,5.691]
[1748855597121,3.4093,2481.1,2480.8,0.81182583]
[1748855597319,3.4093,2481.1,2479.0,5.55089946]
[1748855597320,3.4093,2481.1,2480.5,2.01468]
[1748855597521,3.4093,2481.1,2479.9,2.35477722]
[1748855597522,3.2078,2480.8,2480.2,5.691]
[1748855598013,4.0136,2480.8,2480.6,0.80585]
[1748855598214,4.0136,2480.8,2480.0,3.208]
[1748855598215,8.2078,2480.8,2480.0,0.14314]
[1748855598421,0.806,2480.2,2479.9,3.2078]
[1748855598619,3.2078,2480.5,2479.9,3.2078]
[1748855598620,3.2078,2480.5,2480.2,0.00604583]
[1748855599014,1.2725,2480.7,2480.2,0.00604583]
[1748855599211,3.2078,2480.8,2480.7,0.80582]
[1748855599417,3.2078,2480.8,2480.7,6.006]
[1748855599817,3.2078,2480.8,2480.7,6.81182]
[1748855600021,3.4093,2481.1,2480.7,6.006]
[1748855600224,3.4093,2481.1,2481.0,0.80572]
[1748855600727,0.2015,2481.1,2481.0,0.80572]
[1748855601021,1e-05,2481.1,2481.0,0.80572]
[1748855602419,1e-05,2481.1,2481.0,5.80572]
[1748855604223,3.2078,2482.1,2482.0,0.8054]
[1748855604421,3.2078,2482.1,2480.7,3.93966144]
[1748855604735,3.2078,2480.9,2480.8,2.39067422]
[1748855605029,1.52098058,2482.0,2480.8,2.39067422]
[1748855605030,3.2078,2481.3,2480.8,2.93338422]
[1748855605237,3.2078,2481.0,2480.8,2.93943005]
[1748855605428,3.2078,2481.0,2480.8,3.74520005]
[1748855605728,3.2078,2481.0,2480.9,0.80575]
[1748855605932,3.2078,2481.0,2480.9,2.15425]
[1748855606319,2.11906,2481.2,2480.9,2.15423]
[1748855606320,1.3134,2481.2,2480.9,2.15423]
[1748855606525,8.36144328,2482.5,2481.0,6.006]
[1748855606526,2.35544328,2482.5,2481.0,6.006]
[1748855606729,3.2078,2482.2,2481.1,45.1813]
[1748855607030,3.2078,2482.2,2481.6,0.80552]
[1748855607225,0.80548,2481.8,2481.7,6.006]
[1748855607427,0.80548,2481.8,2481.1,47.19546]
[1748855607428,0.80556,2481.5,2481.4,6.006]
[1748855607634,0.80562,2481.4,2481.3,6.006]
[1748855608428,0.80562,2481.3,2481.2,1.3946]
[1748855608630,0.80562,2481.3,2481.2,7.4006]
[1748855608926,0.80562,2481.3,2481.2,1.3946]
[1748855609128,3.2078,2481.5,2480.8,3.21384583]
[1748855609329,0.80563,2481.3,2481.1,0.80567]
[1748855609531,0.80563,2481.3,2481.2,1.3946]
[1748855609737,3.2078,2481.5,2481.2,1.3946]
[1748855610037,0.80561,2481.4,2481.2,1.3946]
[1748855610231,0.80557,2481.5,2481.3,6.006]
[1748855610426,0.80559,2481.4,2481.3,6.006]
[1748855610628,5.22167,2481.6,2480.9,1.346]
[1748855610830,0.80572,2481.0,2480.9,1.346]
[1748855611237,0.80572,2481.0,2480.9,7.352]
[1748855612029,0.80572,2481.0,2480.9,1.346]
[1748855612224,0.80575,2480.9,2480.8,0.00604583]
[1748855614131,0.80575,2480.9,2480.8,0.81183583]
[1748855614335,0.7327,2481.2,2481.1,0.80569]
[1748855614531,0.80566,2481.2,2481.1,0.80569]
[1748855614732,2.73633,2481.5,2480.8,4.51694583]
[1748855614931,0.8057,2481.1,2481.0,0.8057]
[1748855615234,2.73633,2481.5,2480.8,4.51694583]
[1748855615235,2.01407,2481.3,2480.8,3.21384583]
[1748855615437,2.73633,2481.5,2480.9,6.007]
[1748855615635,3.97594583,2481.7,2480.9,6.007]
[1748855615835,2.01382,2481.6,2480.9,2.01439]
[1748855616032,3.97594583,2481.7,2481.0,6.007]
[1748855616232,3.21384583,2481.7,2481.2,2.01413]
[1748855616431,0.00604583,2481.7,2481.5,3.2078]
[1748855616628,0.00604583,2481.7,2480.9,6.007]
[1748855616629,2.01382,2481.6,2480.9,6.007]
[1748855616833,0.80575,2480.9,2480.8,0.00604583]
[1748855617637,0.80595,2480.3,2480.2,40.629]
[1748855617844,0.80594,2480.4,2480.2,46.636]
[1748855618030,0.80595,2480.3,2480.2,46.636]
[1748855618230,0.80584,2480.7,2480.5,0.80588]
[1748855618433,3.2078,2480.9,2480.5,0.80587]
[1748855618733,3.2078,2480.9,2480.5,0.00604583]
[1748855618734,0.80585,2480.6,2480.5,0.00604583]
[1748855618939,0.80585,2480.6,2480.5,6.01304583]
[1748855619133,5.85092,2480.9,2480.5,6.01304583]
[1748855619134,3.8365,2480.9,2480.5,6.01304583]
[1748855619338,0.80584,2480.7,2480.5,6.81890583]
[1748855619842,0.80584,2480.7,2480.6,0.80585]
[1748855620035,3.2078,2481.2,2480.5,6.01304583]
[1748855620339,0.8058,2480.8,2480.6,0.80582]
[1748855620539,0.80585,2480.6,2480.5,6.01304583]
[1748855620736,0.80584,2480.7,2480.5,6.81891583]
[1748855620938,0.80585,2480.6,2480.5,6.81891583]
[1748855621139,3.2078,2480.9,2480.5,0.00604583]
[1748855621330,0.80582,2480.7,2480.6,6.007]
[1748855621536,3.2078,2480.9,2480.6,6.007]
[1748855621731,0.8058,2480.8,2480.6,6.007]
[1748855621940,0.80576,2480.9,2480.6,6.007]
[1748855622135,0.80576,2480.9,2480.7,0.80582]
[1748855622341,4.6915,2481.5,2480.7,5.22234]
[1748855622743,0.80568,2481.2,2480.7,5.23737262]
[1748855622940,0.00604583,2481.7,2481.6,0.80553]
[1748855623239,0.80566,2481.2,2481.1,1.60038217]
[1748855623437,5.22183,2481.4,2480.8,2.40008883]
[1748855623639,0.80574,2481.0,2480.8,0.80576]
[1748855623835,0.80579,2480.8,2480.7,1.61541479]
[1748855624239,0.80579,2480.8,2480.7,0.01503262]
[1748855624646,0.80579,2480.8,2480.7,6.02203262]
[1748855624841,3.2078,2481.1,2480.7,6.82785262]
[1748855625044,0.80579,2480.8,2480.7,0.01503262]
[1748855625238,0.80579,2480.8,2480.7,6.02203262]
[1748855625536,0.80579,2480.8,2480.7,0.01503262]
[1748855625738,3.2078,2481.1,2480.7,6.02203262]
[1748855625935,0.80576,2480.9,2480.8,0.80577]
[1748855626142,0.80573,2481.0,2480.9,0.80574]
[1748855626441,2.79191,2481.4,2480.7,6.82783262]
[1748855626747,3.2078,2481.2,2480.7,6.02203262]
[1748855626947,0.80575,2481.0,2480.9,0.80575]
[1748855627148,0.80572,2481.0,2480.9,6.007]
[1748855627753,3.2078,2481.2,2480.9,6.007]
[1748855627946,0.80567,2481.2,2481.1,0.80568]
[1748855628150,0.80564,2481.3,2481.2,0.80564]
[1748855628352,0.80564,2481.3,2481.2,0.60414]
[1748855628546,3.2078,2481.6,2480.9,8.35328217]
[1748855628845,0.00604583,2481.7,2481.6,0.80553]
[1748855629049,0.00604583,2481.7,2481.0,3.9526]
[1748855629050,0.80553,2481.6,2481.5,6.009]
[1748855629248,0.80564,2481.3,2481.2,0.80565]
[1748855629549,0.8056,2481.4,2481.3,0.80561]
[1748855629750,2.01984583,2481.7,2481.2,6.008]
[1748855629947,0.00604583,2481.7,2481.2,8.02212]
[1748855630147,0.00604583,2481.7,2481.3,7.3512]
[1748855630343,1.00695,2481.6,2481.5,0.80555]
[1748855630749,0.2014,2481.6,2481.5,0.80555]
[1748855630944,0.2014,2481.6,2481.2,1.60038217]
[1748855631146,0.80563,2481.3,2481.2,0.80564]
[1748855631349,0.80566,2481.2,2481.1,0.80567]
[1748855631653,3.4092,2481.6,2481.0,5.55298217]
[1748855631848,3.4092,2481.6,2481.2,0.80566]
[1748855631849,0.80562,2481.3,2481.2,0.80566]
[1748855632051,0.80562,2481.4,2481.3,0.80562]
[1748855632357,3.4092,2481.6,2481.5,0.80556]
[1748855632655,4.21473,2481.6,2481.5,6.008]
[1748855633048,3.4092,2481.6,2481.5,6.81356]
[1748855633454,0.80557,2481.5,2481.4,0.80557]
[1748855633756,3.4092,2481.6,2481.4,6.81357]
[1748855633950,3.4092,2481.6,2481.5,0.80556]
[1748855634248,0.00604583,2481.7,2481.6,0.80553]
[1748855634454,3.2078,2482.1,2482.0,0.8054]
[1748855634656,3.2078,2482.1,2482.0,6.8134]
[1748855634954,5.22101,2482.4,2482.0,6.008]
[1748855635153,3.2078,2482.4,2482.0,6.008]
[1748855635344,0.80536,2482.1,2482.0,6.01404583]
[1748855636357,0.80536,2482.1,2482.0,6.81944583]
[1748855636854,0.80536,2482.1,2482.0,6.81941583]
[1748855637055,0.80536,2482.1,2482.0,6.01404583]
[1748855637255,1.00675,2482.2,2482.1,0.80536]
[1748855637450,0.2014,2482.2,2482.1,0.80536]
[1748855637955,0.2014,2482.2,2482.0,6.01404583]
[1748855638150,0.80536,2482.1,2482.0,0.00604583]
[1748855638855,0.80536,2482.1,2482.0,6.01304583]
[1748855639053,0.80536,2482.1,2482.0,0.00604583]
[1748855639256,0.2014,2482.2,2482.0,0.00604583]
[1748855639660,0.80536,2482.1,2482.0,0.81141583]
[1748855639853,0.80536,2482.1,2482.0,6.01304583]
[1748855640053,0.80536,2482.1,2482.0,0.81141583]
[1748855640259,0.2014,2482.2,2482.1,0.80536]
[1748855640756,0.2014,2482.2,2482.1,6.81236]
[1748855640963,1.00673,2482.2,2482.1,6.81236]
[1748855641764,0.2014,2482.2,2482.1,0.80536]
[1748855641953,1.00673,2482.2,2482.1,6.007]
[1748855642154,0.80536,2482.1,2482.0,0.00604583]
[1748855642356,4.01316,2482.1,2482.0,0.00604583]
[1748855642753,2.0136,2481.9,2481.2,4.738271]
[1748855642956,0.80562,2481.3,2481.2,8.34518217]
[1748855643254,0.80562,2481.3,2481.2,7.55046]
[1748855643559,3.2078,2481.7,2481.3,2.01407]
[1748855643858,0.80561,2481.4,2481.3,0.81164583]
[1748855644156,0.80561,2481.4,2481.3,6.81864583]
[1748855644362,0.80557,2481.5,2481.4,0.80557]
[1748855645557,3.2078,2481.7,2481.3,6.01304583]
[1748855646260,0.80559,2481.4,2481.3,6.81865583]
[1748855646653,0.80559,2481.5,2481.4,0.80558]
[1748855646860,0.80559,2481.4,2481.3,6.81864583]
[1748855647266,3.2078,2481.7,2481.3,6.01304583]
[1748855647458,0.80559,2481.4,2481.3,6.81865583]
[1748855647763,0.80559,2481.4,2481.3,6.57165583]
[1748855647967,0.80554,2481.6,2481.5,0.80554]
[1748855648163,3.2078,2481.7,2481.3,5.76604583]
[1748855648975,0.80559,2481.4,2481.3,6.57164583]
[1748855649568,0.80558,2481.5,2481.4,0.80558]
[1748855649862,0.80557,2481.5,2481.4,0.80557]
[1748855650063,0.80556,2481.5,2481.4,2.14947]
[1748855650261,0.80556,2481.5,2481.4,7.90947]
[1748855650463,3.2078,2481.7,2481.4,7.1039]
[1748855650661,3.2078,2481.7,2481.6,0.80553]
[1748855650972,3.4092,2482.2,2482.1,0.80536]
[1748855651161,4.21453,2482.2,2482.1,6.56536]
[1748855651565,3.4092,2482.2,2482.1,6.56536]
[1748855651763,4.21453,2482.2,2482.1,6.56536]
[1748855651964,0.2014,2482.2,2482.1,6.56536]
[1748855652670,0.80513,2482.9,2482.3,0.8053]
[1748855652973,0.80514,2482.9,2482.7,0.80516]
[1748855653266,2.35544328,2483.6,2482.4,3.2078]
[1748855653267,2.35544328,2483.6,2483.0,0.80507]
[1748855653467,3.2078,2483.6,2482.8,10.56818217]
[1748855653669,0.81096583,2483.5,2483.3,0.80496]
[1748855653864,0.00604583,2483.5,2483.1,3.21384583]
[1748855654064,0.80498,2483.3,2483.2,5.76]
[1748855654465,0.80501,2483.2,2483.1,0.00604583]
[1748855655674,0.80518,2482.7,2482.6,0.8052]
[1748855655865,0.80524,2482.5,2482.4,1.55217]
[1748855656166,3.2078,2483.0,2482.5,0.80521]
[1748855656167,0.80519,2482.7,2482.5,0.80521]
[1748855656366,0.80508,2483.0,2482.5,3.2078]
[1748855656574,3.2078,2483.1,2483.0,0.80507]
[1748855656865,0.80514,2482.8,2482.5,3.21384583]
[1748855657065,0.80513,2482.9,2482.8,0.80514]
[1748855657265,0.8051,2483.0,2482.9,0.80511]
[1748855657465,3.2078,2483.1,2483.0,0.80507]
[1748855657666,0.80502,2483.2,2483.1,0.80502]
[1748855657974,0.2003,2483.3,2483.2,0.80501]
[1748855658270,0.2003,2483.3,2483.2,2.10691]
[1748855658569,1.00528,2483.3,2483.2,2.10691]
[1748855658773,1.00528,2483.3,2483.2,1.3019]
[1748855659873,0.2003,2483.3,2483.2,2.10691]
[1748855660068,0.2003,2483.3,2483.2,7.86491]
[1748855660675,1.00528,2483.3,2483.2,7.0599]
[1748855663074,0.80511,2482.9,2482.8,0.6816]
[1748855663374,0.80507,2483.0,2482.9,1.3804]
[1748855664873,0.80507,2483.0,2482.9,7.1384]
[1748855665284,0.80507,2483.0,2482.9,7.94351]
[1748855665575,0.80507,2483.0,2482.9,7.1384]
[1748855666074,0.80507,2483.0,2482.9,7.94351]
[1748855666269,0.80507,2483.0,2482.9,7.1384]
[1748855666465,0.80507,2483.0,2482.9,7.1374]
[1748855667278,0.80507,2483.0,2482.9,7.94251]
[1748855667474,3.2078,2483.1,2483.0,0.80507]
[1748855667670,0.80499,2483.3,2483.0,3.41447]
[1748855667979,0.80499,2483.3,2483.2,0.80498]
[1748855668165,0.80498,2483.3,2483.2,6.56201]
[1748855668366,3.2078,2483.4,2483.2,5.757]
[1748855668576,4.01274,2483.4,2483.3,1.2715]
[1748855669175,4.01274,2483.4,2483.3,7.0285]
[1748855672078,4.01274,2483.4,2483.3,1.2715]
[1748855672279,0.80498,2483.3,2483.2,5.757]
[1748855674178,0.80498,2483.3,2483.2,6.56201]
[1748855674781,0.80498,2483.3,2483.2,5.757]
[1748855675679,4.01277,2483.4,2483.3,0.80498]
[1748855675983,0.80498,2483.3,2483.2,0.80498]
[1748855676184,0.80498,2483.3,2483.2,6.31298]
[1748855676684,3.2078,2483.4,2483.3,0.80498]
[1748855677380,0.20734583,2483.5,2483.4,0.80494]
[1748855677681,0.80498,2483.3,2483.2,5.507]
[1748855677880,2.21963583,2483.5,2483.2,5.507]
[1748855677881,4.01275,2483.4,2483.2,5.507]
[1748855678087,0.80498,2483.3,2483.2,5.507]
[1748855678384,0.80498,2483.3,2483.2,6.31198]
[1748855679186,0.80496,2483.4,2483.3,0.80498]
[1748855680180,0.80498,2483.3,2483.2,6.31199]
[1748855680379,0.80501,2483.2,2483.1,5.507]
[1748855681780,0.80501,2483.2,2483.1,6.31204]
[1748855682086,3.9536,2483.4,2483.1,5.507]
[1748855682285,0.80501,2483.2,2483.1,5.507]
[1748855682587,0.80501,2483.2,2483.1,6.31204]
[1748855682884,0.80501,2483.2,2483.1,5.507]
[1748855683083,0.80511,2482.9,2482.8,1.20442501]
[1748855683285,0.80514,2482.9,2482.8,7.51654501]
[1748855683482,0.80514,2482.9,2482.8,6.31212]
[1748855684381,4.01288,2483.0,2482.9,0.80511]
[1748855684782,4.01288,2483.0,2482.8,5.507]
[1748855684783,0.80505,2483.1,2483.0,0.80507]
[1748855685393,0.80502,2483.2,2483.1,0.80501]
[1748855686091,0.80509,2483.1,2483.0,0.80505]
[1748855687796,0.80511,2482.9,2482.8,2.01039552]
[1748855688001,0.80511,2482.9,2482.8,6.31313]
[1748855688399,0.80511,2482.9,2482.8,7.51839552]
[1748855688801,0.80511,2482.9,2482.8,6.31313]
[1748855688998,3.2078,2483.0,2482.9,0.80511]
[1748855689198,0.80506,2483.1,2483.0,0.80507]
[1748855690504,0.80507,2483.0,2482.9,2.18837]
[1748855691501,0.80507,2483.0,2482.9,1.3833]
[1748855691704,4.01287,2483.0,2482.9,1.3833]
[1748855692005,0.80507,2483.0,2482.9,2.18841]
[1748855692211,0.80506,2483.1,2483.0,0.80503]
[1748855692608,3.2078,2483.3,2482.9,1.3833]
[1748855692806,0.80496,2483.4,2483.3,0.80494]
[1748855693706,0.80501,2483.3,2483.2,0.80498]
[1748855693913,0.80501,2483.3,2483.2,2.20398]
[1748855694710,0.80498,2483.3,2483.2,2.20397]
[1748855694903,0.80498,2483.3,2483.2,7.47497]
[1748855695103,0.80498,2483.3,2483.2,6.67]
[1748855695402,0.80498,2483.3,2483.2,7.47501]
[1748855695602,1.21394583,2483.5,2483.4,0.80494]
[1748855696213,1.21394583,2483.5,2483.1,0.80503]
[1748855696411,0.80504,2483.1,2483.0,1.20539985]
[1748855696609,1.21394583,2483.5,2483.0,3.21808985]
[1748855696812,0.80501,2483.3,2483.2,0.80499]
[1748855697505,0.80503,2483.2,2483.1,0.80501]
[1748855697705,0.79544381,2483.2,2483.1,0.80501]
[1748855698610,4.01281,2483.3,2483.2,0.80501]
[1748855698812,3.02494583,2483.5,2483.1,7.2836]
[1748855698813,1.01264583,2483.5,2483.1,7.2836]
[1748855699012,1.81757583,2483.5,2483.4,0.80494]
[1748855699210,1.01264583,2483.5,2483.4,0.80494]
[1748855699909,1.21394583,2483.5,2483.4,0.80494]
[1748855700112,1.21394583,2483.5,2483.4,2.0101524]
[1748855700310,2.01885583,2483.5,2483.4,1.2052124]
[1748855700510,0.80494,2483.4,2483.3,7.2811924]
[1748855700711,0.80494,2483.4,2483.3,2.0101924]
[1748855700913,0.80498,2483.3,2483.2,6.4762124]
[1748855701108,4.01278,2483.3,2483.2,1.2052124]
[1748855701308,0.80498,2483.3,2483.2,1.2052124]
[1748855701507,0.80499,2483.4,2483.3,0.80496]
[1748855701719,0.80504,2483.1,2483.0,2.01027305]
[1748855701922,0.80504,2483.1,2483.0,1.20520305]
[1748855702119,0.80504,2483.1,2482.5,1.61283265]
[1748855702120,0.8052,2482.6,2482.5,1.61283265]
[1748855702417,0.8052,2482.6,2482.1,4.01737469]
[1748855702418,28.7888,2482.6,2482.2,1.60742676]
[1748855702613,28.7888,2482.6,2481.4,3.21389975]
[1748855702614,0.80556,2481.5,2481.4,3.21389975]
[1748855702822,4.01335,2481.6,2481.1,10.89532457]
[1748855703016,3.2078,2481.9,2481.3,3.2078]
[1748855703219,4.0762,2482.2,2482.1,0.80537]
[1748855703512,0.80538,2482.1,2481.9,0.80541]
[1748855703722,0.8054,2482.0,2481.7,6.1086]
[1748855703919,0.80538,2482.1,2481.9,0.80543]
[1748855704115,0.80546,2481.8,2481.7,5.271]
[1748855704313,3.2078,2481.9,2481.7,5.271]
[1748855704515,0.81132583,2482.4,2482.2,0.80531]
[1748855704716,0.8053,2482.3,2482.1,0.80535]
[1748855705014,0.81133583,2482.4,2482.2,0.80533]
[1748855705216,0.00604583,2482.4,2482.0,5.272]
[1748855705420,0.8053,2482.3,2482.1,0.80537]
[1748855706021,0.8053,2482.3,2482.0,6.07737]
[1748855706212,0.00604583,2482.4,2482.1,0.80535]
[1748855706414,0.00604583,2482.4,2482.3,0.8053]
[1748855706620,0.80533,2482.2,2482.0,6.07738]
[1748855706816,0.80532,2482.3,2482.1,0.80537]
[1748855707021,0.00604583,2482.4,2482.3,0.8053]
[1748855707520,0.00604583,2482.4,2482.1,0.8162]
[1748855707521,0.80533,2482.2,2482.1,6.0882]
[1748855707721,0.80533,2482.2,2482.1,6.89357]
[1748855707911,0.80532,2482.3,2482.1,6.89357]
[1748855708116,0.80533,2482.2,2482.1,6.89357]
[1748855708423,0.81132583,2482.4,2482.1,6.0882]
[1748855708624,0.00604583,2482.4,2482.3,0.8053]
[1748855708823,0.00604583,2482.4,2482.1,0.8162]
[1748855709023,0.80533,2482.2,2482.1,0.8162]
[1748855709522,0.00604583,2482.4,2482.1,0.8162]
[1748855709826,0.80531,2482.3,2482.2,0.80532]
[1748855710124,0.00604583,2482.4,2481.5,3.2078]
[1748855710428,4.0133,2481.7,2481.6,1.2973]
[1748855710724,3.2078,2481.7,2481.6,2.10283]
[1748855711022,4.0133,2481.7,2481.6,1.2973]
[1748855711418,3.2078,2481.7,2481.6,2.10283]
[1748855712317,4.0133,2481.7,2481.6,2.10283]
[1748855712921,3.2078,2481.7,2481.6,2.10283]
[1748855713115,4.0133,2481.7,2481.6,2.10283]
[1748855713317,4.0133,2481.7,2481.6,1.2973]
[1748855713920,4.0133,2481.7,2481.6,2.10283]
[1748855713921,3.2078,2481.7,2481.6,2.10283]
[1748855714324,0.80539,2482.1,2482.0,0.80539]
[1748855714526,4.01315,2482.2,2482.1,0.80537]
[1748855714826,3.2078,2482.2,2482.1,0.80537]
[1748855715016,0.81132583,2482.4,2482.3,0.8053]
[1748855715420,0.00604583,2482.4,2482.0,3.0279]
[1748855715631,0.80532,2482.3,2482.2,0.80532]
[1748855716130,0.00604583,2482.4,2482.0,3.0279]
[1748855716331,0.80533,2482.3,2482.2,0.80533]
[1748855716629,0.80537,2482.1,2482.0,1.7421]
[1748855716817,0.80537,2482.1,2482.0,0.8856]
[1748855717017,0.80537,2482.1,2482.0,1.691]
[1748855717221,0.80537,2482.1,2482.0,0.8856]
[1748855717619,0.80542,2482.0,2481.7,5.273]
[1748855717820,0.80542,2482.0,2481.9,0.80542]
[1748855718226,3.2078,2482.2,2482.1,0.80537]
[1748855719322,0.80538,2482.1,2482.0,0.80538]
[1748855719529,3.2078,2482.2,2481.7,8.4808]
[1748855719733,0.80546,2481.8,2481.7,3.2078]
[1748855720230,3.2078,2481.9,2481.3,43.8158]
[1748855720427,0.80558,2481.5,2481.4,6.07858]
[1748855720626,3.2078,2481.6,2481.3,40.608]
[1748855720928,4.01334,2481.6,2481.5,0.80556]
[1748855721635,3.2078,2481.6,2481.5,0.80556]
[1748855722030,4.01333,2481.6,2481.5,0.80556]
[1748855722234,0.80557,2481.5,2481.4,0.80557]
[1748855722443,4.01335,2481.6,2481.5,0.80556]
[1748855722625,3.2078,2481.6,2481.5,0.80556]
[1748855722826,3.4092,2481.6,2481.5,0.80556]
[1748855723026,0.2014,2481.6,2481.5,0.80556]
[1748855723239,0.2014,2481.6,2481.5,5.80556]
[1748855723533,0.80538,2482.1,2482.0,0.80537]
[1748855725232,3.0595,2482.2,2482.1,0.80537]
[1748855725736,3.0595,2482.2,2481.9,5.274]
[1748855725737,3.0595,2482.2,2481.9,5.192]
[1748855725930,3.0595,2482.2,2482.0,0.80537]
[1748855726129,3.0595,2482.2,2482.0,0.8054]
[1748855726130,3.2078,2482.1,2482.0,0.8054]
[1748855726434,4.01319,2482.1,2482.0,0.8054]
[1748855726735,3.2078,2482.1,2482.0,0.8054]
[1748855727133,0.80542,2482.0,2481.8,0.8309]
[1748855727327,0.80542,2482.0,2481.9,0.80541]
[1748855727631,0.80542,2482.0,2481.4,2.89474]
[1748855727632,0.80551,2481.7,2481.4,0.8808]
[1748855727839,0.80551,2481.7,2481.6,5.99752]
[1748855728033,0.80551,2481.7,2481.6,0.80552]
[1748855728829,0.80548,2481.8,2481.7,0.80547]
[1748855730831,0.8055,2481.7,2481.6,2.1785]
[1748855731227,0.80549,2481.8,2481.7,0.80546]
[1748855732240,2.01353,2482.0,2481.6,1.373]
[1748855732241,0.80545,2481.9,2481.8,0.80543]